bitfinex/quotes_ETHUSD_20250821
["timestamp","ask_amount","ask_price","bid_price","bid_amount"]
[1755799363186,0.002,4253.5,4253.4,0.21706765]
[1755799363592,0.3149,4253.5,4253.4,0.21706765]
[1755799364186,0.002,4253.5,4253.4,0.50356765]
[1755799364390,0.002,4253.5,4253.4,0.94056765]
[1755799366891,0.002,4253.5,4253.4,0.96407825]
[1755799367091,0.002,4253.5,4253.4,0.94056765]
[1755799367514,0.002,4253.5,4253.4,0.21706765]
[1755799367696,0.002,4253.5,4253.4,0.50356765]
[1755799368281,0.002,4253.5,4253.3,0.001]
[1755799368501,0.002,4253.5,4253.4,0.21769525]
[1755799368700,0.002,4253.5,4253.4,0.50419525]
[1755799368896,0.002,4253.5,4253.4,0.50419001]
[1755799369100,0.1341,4253.5,4253.4,0.21769001]
[1755799370199,0.002,4253.5,4253.4,0.94119001]
[1755799371111,0.002,4253.5,4253.4,0.50420471]
[1755799371513,0.002,4253.5,4253.4,0.2865]
[1755799371693,0.002,4253.5,4253.4,0.7235]
[1755799377627,0.002,4253.5,4253.4,0.7470106]
[1755799377992,0.002,4253.5,4253.4,0.7235]
[1755799378222,0.002,4253.5,4253.4,0.7470106]
[1755799378527,0.002,4253.5,4253.3,0.001]
[1755799379224,0.3129,4253.4,4253.3,0.001]
[1755799379424,0.7818,4253.4,4253.3,0.001]
[1755799381728,1.47118825,4253.4,4253.3,0.001]
[1755799381893,1.91850708,4253.4,4253.3,0.001]
[1755799382696,1.88911883,4253.4,4253.3,0.001]
[1755799383043,35.27075039,4253.4,4253.3,0.001]
[1755799383204,35.7485846,4253.4,4253.3,0.001]
[1755799385142,38.09964492,4253.4,4253.3,0.001]
[1755799385841,37.87940744,4253.4,4253.3,0.001]
[1755799386002,38.09941718,4253.4,4253.3,0.001]
[1755799386202,38.27338051,4253.4,4253.3,0.001]
[1755799386407,38.2731814,4253.4,4253.3,0.001]
[1755799386923,39.54071956,4253.4,4253.3,0.001]
[1755799387359,35.92212108,4253.4,4253.3,0.001]
[1755799387565,39.07915775,4253.4,4253.3,0.001]
[1755799387728,39.71192646,4253.4,4253.3,0.001]
[1755799388255,35.08815775,4253.4,4253.3,0.001]
[1755799388462,7.88205775,4253.4,4253.3,0.001]
[1755799388631,10.42025775,4253.4,4253.3,0.001]
[1755799388831,10.88205775,4253.4,4253.3,0.001]
[1755799389259,11.41012395,4253.4,4253.3,0.001]
[1755799389841,44.52568145,4253.4,4253.3,0.001]
[1755799390046,43.89291274,4253.4,4253.3,0.001]
[1755799391052,54.50091274,4253.4,4253.3,0.001]
[1755799393142,3.01128144,4253.0,4252.9,0.001]
[1755799393462,54.87238515,4253.0,4252.9,0.001]
[1755799393635,56.03049961,4253.0,4252.9,0.001]
[1755799393840,55.39914914,4253.0,4252.9,0.001]
[1755799394037,51.40514914,4253.0,4252.9,0.001]
[1755799394269,58.29880603,4253.0,4252.9,0.001]
[1755799394681,54.30380603,4253.0,4252.9,0.001]
[1755799394861,43.97595466,4253.0,4252.9,0.001]
[1755799395063,43.18422619,4253.0,4252.9,0.001]
[1755799395376,43.84336357,4253.0,4252.9,0.001]
[1755799395949,41.49208213,4253.0,4252.9,0.001]
[1755799396145,37.03528213,4253.0,4252.9,0.001]
[1755799396350,41.03128213,4253.0,4252.9,0.001]
[1755799396574,43.38256357,4253.0,4252.9,0.001]
[1755799397156,40.74438213,4253.0,4252.9,0.001]
[1755799397497,10.01813963,4253.0,4252.9,0.001]
[1755799397651,7.656,4253.0,4252.9,0.001]
[1755799399471,0.66,4253.0,4252.9,0.7308]
[1755799399679,4.653,4253.0,4252.9,0.7308]
[1755799399991,2.25631883,4253.4,4252.9,0.7308]
[1755799399992,3.0,4253.3,4252.9,0.7308]
[1755799400183,0.02938963,4253.2,4253.0,0.4308]
[1755799400379,0.66,4253.0,4252.9,0.001]
[1755799400580,0.68939101,4253.0,4252.9,0.3]
[1755799400970,0.68939101,4253.0,4252.9,0.4308]
[1755799401213,0.68939101,4253.0,4252.9,0.299]
[1755799401413,0.97629101,4253.0,4252.8,0.001]
[1755799401708,1.17988619,4252.9,4252.8,0.001]
[1755799401880,8.17288619,4252.9,4252.8,0.001]
[1755799402282,40.81112292,4252.9,4252.8,0.001]
[1755799402601,40.81112292,4252.9,4252.5,0.001]
[1755799402602,6.01139378,4252.8,4251.3,0.4308]
[1755799402808,3.66,4252.6,4251.3,0.4308]
[1755799403021,3.66,4252.4,4251.3,0.4308]
[1755799403182,3.66,4252.2,4251.4,0.4318]
[1755799403383,7.68739723,4252.1,4251.4,0.4318]
[1755799403584,7.658,4252.1,4251.6,0.4308]
[1755799403893,7.658,4252.1,4251.4,0.001]
[1755799404214,7.658,4252.1,4252.0,0.3]
[1755799404422,8.4238,4252.1,4252.0,0.3]
[1755799406409,3.66,4252.1,4252.0,0.7308]
[1755799406789,7.655,4252.1,4252.0,0.7308]
[1755799408909,3.66,4252.0,4251.4,0.001]
[1755799409110,7.96929862,4251.9,4251.4,0.001]
[1755799409310,8.66726512,4251.9,4251.4,0.001]
[1755799409514,9.99579163,4251.9,4251.4,0.001]
[1755799409676,9.02694559,4251.9,4251.4,0.001]
[1755799410015,9.31384559,4251.9,4251.4,0.001]
[1755799410322,9.77564559,4251.9,4251.4,0.001]
[1755799410696,42.34766496,4251.9,4251.4,0.001]
[1755799411003,42.47974896,4251.9,4251.4,0.001]
[1755799411231,3.66,4251.8,4251.4,0.001]
[1755799411382,0.66,4251.2,4250.8,0.021]
[1755799411582,40.32258046,4251.2,4250.8,0.021]
[1755799411939,41.48286261,4251.2,4250.8,0.021]
[1755799412148,41.61506704,4251.2,4250.8,0.021]
[1755799412352,39.26279004,4251.2,4250.8,0.021]
[1755799412627,41.16512967,4251.2,4250.8,0.021]
[1755799412840,11.16512967,4251.2,4250.8,0.021]
[1755799413041,8.38388561,4251.2,4250.8,0.021]
[1755799413246,4.38788561,4251.2,4250.8,0.021]
[1755799413413,8.41328907,4251.2,4250.8,0.021]
[1755799413610,7.656,4251.2,4250.8,0.021]
[1755799413929,8.51632941,4251.2,4251.1,0.3]
[1755799414247,3.0,4251.1,4250.8,0.021]
[1755799414396,3.66,4250.9,4250.8,0.021]
[1755799414591,3.66,4250.9,4250.8,0.32]
[1755799414592,6.33032995,4250.9,4250.8,0.32]
[1755799414797,9.53309996,4250.9,4250.8,0.7508]
[1755799415394,5.03036606,4250.9,4250.8,0.7508]
[1755799415594,9.02536606,4250.9,4250.8,0.7508]
[1755799416039,8.805,4250.9,4250.8,0.7508]
[1755799416338,8.805,4250.9,4250.8,0.32]
[1755799416726,4.81,4250.9,4250.8,0.7508]
[1755799416910,8.805,4250.9,4250.8,0.7508]
[1755799417244,1.81,4251.5,4250.8,0.7508]
[1755799417410,4.21426269,4251.4,4250.8,0.7508]
[1755799417610,0.66,4251.3,4250.8,0.7508]
[1755799417826,3.0,4251.1,4250.9,0.4672]
[1755799418043,3.0,4250.9,4250.8,0.021]
[1755799418214,4.02340553,4250.9,4250.8,0.021]
[1755799418743,4.02340553,4250.9,4250.8,0.7851]
[1755799419302,3.994,4250.9,4250.8,0.7851]
[1755799420246,3.994,4250.9,4250.8,0.3179]
[1755799420463,4.3934,4250.9,4250.8,0.021]
[1755799420738,3.993,4250.9,4250.8,0.7851]
[1755799421249,3.994,4250.9,4250.8,0.7851]
[1755799422344,3.994,4250.9,4250.8,0.3179]
[1755799422861,3.994,4250.9,4250.8,0.021]
[1755799423005,7.6804,4250.9,4250.8,0.021]
[1755799423347,9.02693127,4250.9,4250.8,0.021]
[1755799423703,9.53459413,4250.9,4250.8,0.021]
[1755799424201,12.01559413,4250.9,4250.8,0.021]
[1755799424760,12.14777251,4250.9,4250.8,0.021]
[1755799426476,9.66677251,4250.9,4250.8,0.021]
[1755799427184,9.66671256,4250.9,4250.8,0.021]
[1755799427628,17.35197911,4250.4,4250.3,0.001]
[1755799427834,25.39750829,4250.4,4250.3,0.001]
[1755799428363,25.86370829,4250.4,4250.3,0.001]
[1755799428569,29.75970829,4250.4,4250.3,0.001]
[1755799428968,28.85186807,4250.4,4250.3,0.001]
[1755799429181,58.85186807,4250.4,4250.3,0.001]
[1755799429340,60.26686807,4250.4,4250.3,0.001]
[1755799429543,60.39891013,4250.4,4250.3,0.001]
[1755799430664,56.50291013,4250.4,4250.3,0.001]
[1755799430970,26.03671013,4250.4,4250.3,0.001]
[1755799431143,25.74871013,4250.4,4250.3,0.001]
[1755799431343,25.90335563,4250.4,4250.3,0.001]
[1755799431535,26.36955563,4250.4,4250.3,0.001]
[1755799431740,56.5015669,4250.4,4250.3,0.001]
[1755799432162,56.50163621,4250.4,4250.3,0.001]
[1755799432369,56.61708673,4250.4,4250.3,0.001]
[1755799434614,63.60708673,4250.4,4250.3,0.001]
[1755799435284,63.60708673,4250.4,4249.9,0.001]
[1755799435285,3.66,4250.3,4249.9,0.001]
[1755799435487,0.947,4250.0,4249.9,0.001]
[1755799435815,33.66,4249.9,4248.8,0.02]
[1755799436099,0.66,4249.3,4248.8,0.02]
[1755799436397,9.71039241,4249.2,4248.8,0.02]
[1755799436611,9.68097511,4249.2,4249.1,0.2979]
[1755799436816,12.01827053,4249.2,4249.1,0.2979]
[1755799437015,11.79829542,4249.2,4249.1,0.2979]
[1755799437505,11.79829542,4249.2,4248.8,0.02]
[1755799437707,16.69197911,4248.9,4248.8,0.02]
[1755799437905,21.34197911,4248.9,4248.8,0.02]
[1755799438113,22.94737887,4248.9,4248.8,0.02]
[1755799438265,3.66,4248.8,4248.2,0.001]
[1755799438469,3.0,4248.6,4248.5,0.4672]
[1755799438710,3.0,4248.6,4248.5,0.2969]
[1755799438912,3.02942145,4248.6,4248.5,0.2969]
[1755799439789,3.02942145,4248.6,4248.5,0.7641]
[1755799439990,6.989,4248.6,4248.5,0.7641]
[1755799440313,6.989,4248.6,4248.5,0.2969]
[1755799440612,9.05709791,4248.6,4248.5,0.2969]
[1755799442291,0.66,4248.5,4248.2,0.001]
[1755799442501,0.68942214,4248.5,4248.2,0.001]
[1755799442817,0.68942214,4248.5,4248.4,0.2979]
[1755799443201,0.68942214,4248.5,4248.4,0.001]
[1755799443513,1.66407414,4248.5,4248.4,0.2979]
[1755799443715,1.66407414,4248.5,4248.4,0.7651]
[1755799443716,0.02942214,4248.5,4248.4,0.7651]
[1755799444020,7.01942214,4248.5,4248.4,0.7651]
[1755799444173,6.99,4248.5,4248.4,0.7651]
[1755799444567,3.989,4248.8,4248.4,0.7651]
[1755799444795,3.0,4248.8,4248.5,0.4672]
[1755799445001,3.0,4248.8,4248.7,0.2969]
[1755799445188,3.02942007,4248.8,4248.7,0.2969]
[1755799446486,3.02942007,4248.8,4248.7,0.7641]
[1755799446794,6.99,4248.8,4248.7,0.7641]
[1755799447328,6.99,4248.8,4248.7,0.2969]
[1755799449597,6.99,4248.8,4248.4,0.001]
[1755799449802,3.02942076,4248.7,4248.4,0.001]
[1755799449999,3.0,4248.5,4248.4,0.001]
[1755799450199,3.02942214,4248.5,4248.4,0.001]
[1755799450613,4.45722214,4248.5,4248.4,0.001]
[1755799451094,3.99712214,4248.5,4248.4,0.001]
[1755799453491,4.45722214,4248.5,4248.4,0.001]
[1755799453699,5.50875835,4248.5,4248.4,0.001]
[1755799453893,5.47933621,4248.5,4248.4,0.001]
[1755799454097,5.69959908,4248.5,4248.4,0.001]
[1755799455529,9.78101108,4248.5,4248.4,0.001]
[1755799455742,9.78102563,4248.5,4248.4,0.001]
[1755799456232,9.32092563,4248.5,4248.4,0.001]
[1755799456930,23.47300474,4248.5,4248.4,0.001]
[1755799458029,22.70320474,4248.5,4248.4,0.001]
[1755799459127,22.70328817,4248.5,4248.4,0.001]
[1755799459531,22.70330458,4248.5,4248.4,0.001]
[1755799459733,23.01100458,4248.5,4248.4,0.001]
[1755799459939,22.70330458,4248.5,4248.4,0.001]
[1755799460133,3.31478926,4248.5,4248.4,0.3023]
[1755799460434,8.26748926,4248.5,4248.4,0.001]
[1755799460734,8.72758926,4248.5,4248.4,0.001]
[1755799461134,8.507212,4248.5,4248.4,0.001]
[1755799461316,9.3579332,4248.5,4248.4,0.001]
[1755799461511,9.57834549,4248.5,4248.4,0.001]
[1755799461739,9.57834549,4248.5,4248.3,0.001]
[1755799461740,3.0,4248.4,4248.3,0.001]
[1755799461903,5.82863513,4248.4,4248.3,0.001]
[1755799462134,6.43940213,4248.4,4248.3,0.001]
[1755799462340,8.80154176,4248.4,4248.3,0.001]
[1755799464194,8.34144176,4248.4,4248.3,0.001]
[1755799464482,8.03374176,4248.4,4248.3,0.001]
[1755799464682,10.31760213,4248.4,4248.3,0.3023]
[1755799465256,10.18533331,4248.4,4248.3,0.3023]
[1755799465655,9.01741229,4248.4,4248.3,0.3023]
[1755799467300,5.03141229,4248.4,4248.3,0.3023]
[1755799467502,9.01641229,4248.4,4248.3,0.3023]
[1755799467960,5.03141229,4248.4,4248.3,0.3023]
[1755799468160,8.796,4248.4,4248.3,0.3023]
[1755799468360,5.0314991,4248.4,4248.3,0.3023]
[1755799468678,8.796,4248.4,4248.3,0.3023]
[1755799469808,0.094418,4248.5,4248.3,0.3023]
[1755799470093,3.984,4248.5,4248.4,0.471]
[1755799470294,6.984,4248.5,4248.4,0.7723]
[1755799470998,3.0,4248.5,4248.4,0.7723]
[1755799471362,3.985,4248.7,4248.4,0.7723]
[1755799471699,3.0,4248.6,4248.5,0.49453771]
[1755799471900,0.002,4249.2,4248.5,0.79583771]
[1755799472197,0.002,4249.2,4248.6,0.471]
[1755799472385,0.002,4249.2,4249.1,0.3013]
[1755799472898,0.002,4249.2,4249.1,0.7723]
[1755799479308,0.002,4249.2,4249.1,3.80927394]
[1755799479511,0.002,4249.2,4249.1,3.90333955]
[1755799479910,0.002,4249.2,4249.1,3.92687394]
[1755799480114,0.002,4249.2,4249.1,4.95321626]
[1755799480310,0.002,4249.2,4249.1,4.92968187]
[1755799481981,0.002,4249.2,4249.1,5.10392729]
[1755799485129,0.02,4249.8,4249.1,5.10392729]
[1755799485292,0.002,4250.1,4250.0,2.35294117]
[1755799485492,0.002,4250.1,4250.0,8.69033529]
[1755799485809,0.002,4250.1,4250.0,2.80259412]
[1755799486008,0.002,4250.1,4250.0,6.78359412]
[1755799486209,0.002,4250.1,4250.0,9.13653529]
[1755799486936,0.002,4250.1,4250.0,6.78359412]
[1755799488614,0.002,4250.1,4250.0,9.13653529]
[1755799488937,0.002,4250.1,4250.0,6.33739412]
[1755799489932,0.002,4250.1,4250.0,2.04529412]
[1755799490136,0.002,4250.1,4250.0,6.02629412]
[1755799490351,0.3022,4250.1,4250.0,2.04529412]
[1755799490501,0.738,4250.1,4250.0,5.791]
[1755799491517,0.738,4250.1,4250.0,5.79]
[1755799491914,0.738,4250.1,4250.0,1.81]
[1755799493741,0.738,4250.1,4250.0,1.83352941]
[1755799493944,0.738,4250.1,4249.9,3.98]
[1755799494249,0.4358,4250.0,4249.4,1.81]
[1755799494546,0.3002,4249.5,4248.8,0.02]
[1755799494835,0.3002,4249.5,4248.9,4.5479]
[1755799495135,0.4358,4249.4,4248.9,4.5479]
[1755799495431,0.3002,4249.0,4248.9,4.5479]
[1755799495609,0.736,4249.0,4248.9,4.5479]
[1755799496002,0.3002,4249.0,4248.9,4.5479]
[1755799497147,0.4358,4249.6,4248.9,4.8825355]
[1755799497330,0.002,4250.1,4249.0,3.02474646]
[1755799497506,0.002,4250.1,4249.1,0.02353439]
[1755799497899,0.4378,4250.1,4249.1,0.02353439]
[1755799498101,0.4378,4250.1,4249.0,0.67125355]
[1755799499428,0.4378,4250.1,4249.0,3.0247101]
[1755799499652,0.4378,4250.1,4249.1,0.73727223]
[1755799501000,0.4378,4250.1,4249.2,0.02353384]
[1755799501200,0.4378,4250.1,4249.3,3.98]
[1755799501401,0.002,4250.1,4250.0,0.3111]
[1755799501624,0.002,4250.1,4250.0,4.2911]
[1755799501826,0.002,4250.1,4250.0,4.72021]
[1755799502145,0.002,4250.1,4250.0,5.16641]
[1755799502647,0.002,4250.1,4250.0,7.51935117]
[1755799502826,0.002,4250.1,4250.0,8.17935117]
[1755799503438,0.002,4250.1,4250.0,8.29695117]
[1755799504147,0.002,4250.1,4250.0,8.47616031]
[1755799509258,0.002,4250.1,4250.0,22.16813942]
[1755799510248,0.002,4250.6,4250.5,3.01266439]
[1755799510424,0.002,4250.6,4250.5,23.07671369]
[1755799510756,0.002,4250.6,4250.5,23.48778705]
[1755799511159,0.002,4250.6,4250.5,23.60538705]
[1755799512029,0.002,4250.6,4250.5,19.62538705]
[1755799512233,0.002,4250.6,4250.5,23.60438705]
[1755799514258,0.002,4250.6,4250.5,5.49880794]
[1755799514574,0.002,4250.6,4250.5,9.47780794]
[1755799515844,0.002,4250.6,4250.5,9.91240794]
[1755799516936,0.002,4250.6,4250.5,5.49880794]
[1755799517136,0.002,4250.6,4250.5,5.18240794]
[1755799517331,0.3181,4250.6,4250.5,9.16140794]
[1755799517537,0.3181,4250.6,4250.5,5.18240794]
[1755799517737,0.3181,4250.6,4250.5,9.16140794]
[1755799517966,0.3181,4250.6,4250.5,4.52240794]
[1755799518169,0.7678,4250.6,4250.5,6.14874355]
[1755799518470,0.7678,4250.6,4250.5,9.16140794]
[1755799518875,0.7678,4250.6,4250.5,9.16040794]
[1755799519555,0.002,4250.6,4250.5,9.47680794]
[1755799520469,0.002,4250.6,4250.5,9.16040794]
[1755799520975,0.002,4250.6,4250.5,9.47680794]
[1755799521174,0.002,4250.6,4250.5,9.91140794]
[1755799522275,0.002,4250.6,4250.5,5.49880794]
[1755799522441,0.002,4250.6,4250.5,9.16040794]
[1755799522646,0.002,4250.6,4250.5,9.47680794]
[1755799523264,0.002,4250.6,4250.5,9.91140794]
[1755799524172,0.02,4250.8,4250.6,3.01260904]
[1755799524376,0.002,4250.9,4250.8,3.01249835]
[1755799524563,0.002,4250.9,4250.8,3.44649835]
[1755799524876,0.002,4251.5,4251.4,3.01216634]
[1755799525180,0.002,4251.5,4251.4,12.139088]
[1755799525362,0.002,4251.5,4251.4,12.23316634]
[1755799525563,0.002,4251.9,4251.6,6.01205569]
[1755799525770,0.002,4251.9,4251.6,10.30645569]
[1755799526081,0.002,4251.9,4251.6,10.74105569]
[1755799526386,0.032,4251.8,4251.6,10.30645569]
[1755799526550,0.002,4253.3,4253.2,6.01117088]
[1755799526744,0.002,4253.3,4253.2,11.79817088]
[1755799527057,0.7678,4253.3,4253.2,6.451]
[1755799528868,0.7178,4253.3,4253.2,6.451]
[1755799529079,0.7178,4253.3,4253.2,1.809]
[1755799529581,0.7178,4253.3,4253.2,5.794]
[1755799529780,0.7178,4253.3,4253.2,1.809]
[1755799529990,0.4178,4253.3,4253.2,1.809]
[1755799530284,0.5839,4253.3,4252.0,0.1176]
[1755799530455,0.3161,4253.3,4252.6,1.809]
[1755799530655,0.3161,4253.3,4252.7,3.985]
[1755799531564,0.3161,4253.3,4252.6,1.809]
[1755799531882,0.3161,4253.3,4252.7,3.984]
[1755799532064,0.02938963,4253.2,4252.7,3.984]
[1755799532258,0.3161,4252.8,4252.7,3.984]
[1755799532660,0.5332,4252.8,4252.7,4.00751447]
[1755799532873,0.5332,4252.8,4252.7,4.58916592]
[1755799532874,0.3161,4252.8,4252.7,4.58916592]
[1755799533074,0.3161,4252.8,4252.7,4.56565145]
[1755799533385,0.3161,4252.8,4252.7,4.58916592]
[1755799534165,0.3161,4252.8,4252.7,4.56565145]
[1755799534166,0.5332,4252.8,4252.7,4.56565145]
[1755799534360,0.5332,4252.8,4252.7,3.984]
[1755799536385,0.5332,4252.8,4252.7,3.983]
[1755799536786,0.5332,4252.8,4252.0,1.809]
[1755799536986,0.2171,4252.7,4252.1,3.986]
[1755799537222,0.3151,4252.2,4252.1,3.986]
[1755799537392,0.4497,4252.9,4252.1,4.8819]
[1755799537758,0.4337,4253.4,4252.2,0.66]
[1755799538390,0.002,4253.5,4252.2,0.66]
[1755799538691,0.4357,4253.5,4252.5,0.66]
[1755799538858,0.4357,4253.5,4252.6,3.986]
[1755799539061,0.4357,4253.5,4252.7,0.39991578]
[1755799539263,0.4357,4253.5,4252.8,1.809]
[1755799539561,0.4357,4253.5,4252.9,3.986]
[1755799540793,0.1007,4253.0,4252.9,3.986]
[1755799540995,0.0507,4253.0,4252.9,3.986]
[1755799541166,0.4357,4253.5,4252.9,4.41511]
[1755799542879,0.002,4253.5,4253.0,0.02351281]
[1755799543193,0.002,4253.5,4253.4,0.2975]
[1755799543397,0.002,4253.5,4253.4,4.3040106]
[1755799543568,0.002,4253.5,4253.4,6.65507092]
[1755799543762,0.002,4253.5,4253.4,7.21106032]
[1755799543963,0.002,4253.5,4253.4,4.86]
[1755799544165,0.2947,4253.5,4253.4,4.5625]
[1755799544475,0.4359,4253.5,4253.4,3.983]
[1755799544874,0.4359,4253.5,4252.9,0.42911]
[1755799545195,0.1428,4253.4,4253.0,3.983]
[1755799545393,0.2897,4253.1,4251.4,2.35211706]
[1755799545571,0.1443,4253.0,4252.9,3.984]
[1755799545773,0.4325,4253.0,4252.9,3.984]
[1755799547671,0.2882,4253.0,4252.9,3.984]
[1755799548368,0.002,4253.5,4252.9,4.00751336]
[1755799549091,0.002,4253.5,4252.9,3.984]
[1755799549293,0.002,4253.5,4252.9,4.3824]
[1755799549497,0.002,4253.5,4252.9,0.3984]
[1755799549665,0.0043,4253.0,4252.3,0.001]
[1755799549870,0.0043,4253.0,4252.4,3.984]
[1755799550909,0.4268,4253.4,4252.4,3.984]
[1755799551220,0.002,4253.5,4252.5,3.46941985]
[1755799551579,0.002,4253.5,4252.6,0.4579]
[1755799551780,0.002,4253.5,4252.7,0.76885645]
[1755799551996,0.002,4253.5,4252.8,3.983]
[1755799552181,0.002,4253.5,4253.4,0.2975]
[1755799552385,0.002,4253.5,4253.4,6.1130106]
[1755799552699,0.002,4253.5,4253.4,6.5474]
[1755799552906,0.002,4253.5,4253.4,7.2105838]
[1755799553487,0.002,4253.5,4253.4,6.7526838]
[1755799553873,0.002,4253.5,4253.4,7.2105838]
[1755799555612,0.002,4253.5,4253.4,10.22164412]
[1755799555783,0.002,4253.5,4253.4,10.33924412]
[1755799560481,0.002,4253.5,4253.4,13.22164412]
[1755799560678,0.02,4253.8,4253.7,3.01089451]
[1755799560901,0.02,4253.8,4253.7,21.8423156]
[1755799561116,0.02,4253.8,4253.7,25.3002156]
[1755799561283,0.002,4254.0,4253.8,8.49483924]
[1755799561488,0.002,4254.0,4253.9,10.28828398]
[1755799561781,0.002,4254.0,4253.9,10.74618398]
[1755799562006,0.002,4254.0,4253.9,11.40936778]
[1755799562210,0.002,4254.0,4253.9,7.60973665]
[1755799562517,0.002,4254.0,4253.9,5.13805267]
[1755799562680,0.2947,4254.0,4253.9,4.6611838]
[1755799562882,0.2947,4254.0,4253.9,3.998]
[1755799564131,0.2947,4254.0,4253.5,0.1176]
[1755799564132,0.5339,4254.0,4253.4,1.809]
[1755799564307,0.5339,4254.0,4253.5,3.998]
[1755799564522,0.2947,4254.0,4253.5,3.998]
[1755799564752,0.2947,4254.0,4253.4,1.809]
[1755799564753,0.2392,4253.9,4253.4,1.809]
[1755799564908,0.002,4254.0,4253.5,3.998]
[1755799565243,0.0996,4253.6,4253.4,1.809]
[1755799565595,0.0996,4253.6,4253.5,3.997]
[1755799566242,0.002,4254.0,4253.6,0.66]
[1755799566404,0.002,4254.0,4253.6,1.1179]
[1755799566608,0.002,4254.0,4253.9,3.30828398]
[1755799566818,0.002,4254.0,4253.9,7.42288398]
[1755799567012,0.002,4254.0,4253.9,8.9039572]
[1755799569551,0.002,4254.0,4253.9,6.09527322]
[1755799569850,0.002,4254.0,4253.9,5.0721]
[1755799570713,0.2987,4254.0,4253.4,1.809]
[1755799570913,0.2987,4254.0,4253.5,3.996]
[1755799571115,0.7297,4254.0,4253.5,3.996]
[1755799571311,0.7297,4254.0,4253.5,4.58826]
[1755799571642,0.7297,4254.0,4253.6,3.995]
[1755799572047,0.2987,4254.0,4253.4,1.809]
[1755799572268,0.431,4253.9,4253.4,1.809]
[1755799572551,0.2957,4253.5,4253.4,1.809]
[1755799572760,0.7277,4253.5,4253.4,3.999]
[1755799572929,0.7277,4253.5,4253.3,4.001]
[1755799573251,0.432,4253.4,4253.3,4.002]
[1755799573434,0.7287,4253.4,4253.3,4.002]
[1755799574419,0.7287,4253.4,4253.3,0.001]
[1755799574617,3.7287,4253.4,4253.3,0.001]
[1755799574849,5.50015616,4253.4,4253.3,0.001]
[1755799575047,5.47076791,4253.4,4253.3,0.001]
[1755799578641,6.13076791,4253.4,4253.3,0.001]
[1755799579230,0.66,4253.3,4253.0,0.001]
[1755799579431,0.9567,4253.1,4252.8,0.02]
[1755799579631,0.9567,4253.1,4252.5,0.001]
[1755799579632,17.35197911,4252.9,4252.5,0.001]
[1755799579843,0.2967,4252.6,4252.5,0.001]
[1755799580655,0.73,4252.6,4252.5,0.001]
[1755799580954,0.75939378,4252.6,4252.4,0.001]
[1755799581156,0.80923938,4252.5,4252.4,0.001]
[1755799581360,1.10593938,4252.5,4252.4,0.001]
[1755799582293,3.0,4252.8,4252.4,0.001]
[1755799582294,0.02939309,4252.7,4252.4,0.001]
[1755799582460,13.69197911,4252.9,4252.4,0.001]
[1755799582632,3.0,4252.8,4252.4,0.001]
[1755799583227,0.44193896,4253.0,4252.4,0.001]
[1755799584459,0.02939101,4253.0,4252.4,0.001]
[1755799584647,1.74206791,4253.4,4252.4,0.02451613]
[1755799584846,0.02938756,4253.5,4252.4,0.001]
[1755799585432,0.4333,4253.4,4252.4,0.001]
[1755799585632,3.0,4253.2,4252.4,0.001]
[1755799585846,1.74485713,4253.1,4252.4,0.001]
[1755799586162,0.2967,4252.5,4252.4,0.001]
[1755799586528,0.5296,4252.5,4252.4,0.001]
[1755799587171,0.2622917,4252.9,4252.4,0.001]
[1755799587373,0.0293917,4252.9,4252.4,0.001]
[1755799587660,0.02939101,4253.0,4252.4,0.001]
[1755799587959,0.47448578,4252.9,4252.4,0.001]
[1755799588165,0.4333,4252.8,4252.4,0.001]
[1755799588536,0.02939101,4253.0,4252.4,0.001]
[1755799589744,0.0976,4252.5,4252.4,0.001]
[1755799590145,0.5276,4252.5,4252.4,0.001]
[1755799590961,2.27895238,4252.5,4252.4,0.001]
[1755799594940,1.81955791,4252.5,4252.4,0.001]
[1755799595145,2.28225238,4252.5,4252.4,0.001]
[1755799596694,3.66,4252.4,4251.9,0.001]
[1755799596995,3.66,4251.9,4251.8,0.02]
[1755799597148,7.99209862,4251.9,4251.8,0.02]
[1755799597348,8.396,4251.9,4251.8,0.02]
[1755799598096,8.396,4251.9,4250.4,1.809]
[1755799598388,0.4292,4251.8,4250.4,1.809]
[1755799598550,0.2958,4251.6,4250.4,1.809]
[1755799598747,0.2958,4251.6,4250.5,0.02352664]
[1755799598966,2.36213963,4251.7,4251.5,0.3137]
[1755799599175,0.0294,4251.7,4251.5,0.3137]
[1755799599777,3.0,4251.9,4251.5,0.3137]
[1755799600147,13.69197911,4252.2,4251.6,0.4702]
[1755799600346,4.005,4252.1,4251.6,0.4702]
[1755799600546,3.0,4252.0,4251.5,0.001]
[1755799600963,3.02939793,4252.0,4251.5,0.001]
[1755799601501,3.02939793,4252.0,4251.5,0.4712]
[1755799601658,3.02939793,4252.0,4251.6,0.4702]
[1755799602484,3.0,4252.0,4251.5,0.001]
[1755799602858,3.0,4252.0,4251.6,0.4702]
[1755799603059,3.0,4252.0,4251.5,0.001]
[1755799603260,0.02939793,4252.0,4251.5,0.001]